Workbook

Sheet СМЕТА
A3: Наименование работ | B3: Помещения | C3: Кол-во | D3: Ед.изм. | E3: Цена за ед работы | F3: Цена за ед мат-ла | G3: Работа | H3: Материал | I3: Всего, руб.
A5: Этап №1
A6: Снятие краски и шпатлевки с потолка | B6: - | C6: 45 | D6: кв.м. | E6: 100 | F6: 0 | G6: =ROUND(PRODUCT(C6:E6),0) -> 4500 | H6: =ROUND(PRODUCT(C6,F6),0) -> 0 | I6: =SUM(G6:H6) -> 4500
A7: Снятие краски и шпатлевки со стен | C7: 4 | D7: кв.м. | E7: 39 | F7: 0 | G7: =ROUND(PRODUCT(C7:E7),0) -> 156 | H7: =ROUND(PRODUCT(C7,F7),0) -> 0 | I7: =SUM(G7:H7) -> 156
A8: Снятие пола | C8: 4 | D8: кв.м. | E8: 40 | F8: 0 | G8: 160 | H8: 0 | I8: 160
A9: Итого (этап №1): | G9: =ROUND(SUMPRODUCT(C5:C9,E5:E9),0) -> 4816 | H9: =ROUND(SUMPRODUCT(C5:C9,F5:F9),0) -> 0
A11: Этап №2
A12: Демонтаж пола | C12: 13 | D12: кв.м. | E12: 150 | F12: 0 | G12: =ROUND(PRODUCT(C12:E12),0) -> 1950 | H12: =ROUND(PRODUCT(C12,F12),0) -> 0 | I12: =SUM(G12:H12) -> 1950
A13: Демонтаж стен | C13: 16 | D13: кв.м. | E13: 45 | F13: 0 | G13: 720 | H13: 0 | I13: 720
A14: Демонтаж потолка | C14: 29 | D14: кв.м. | E14: 39 | F14: 0 | G14: 1131 | H14: 0 | I14: 1131
A15: Итого (этап №2): | G15: =ROUND(SUMPRODUCT(C11:C15,E11:E15),0) -> 3801 | H15: =ROUND(SUMPRODUCT(C11:C15,F11:F15),0) -> 0
A17: Накладные расходы | C17: 1 | D17: компл | E17: 0 | F17: 1000 | G17: =ROUND(PRODUCT(C17:E17),1) -> 0 | H17: =PRODUCT(C17,F17) -> 1000 | I17: =SUM(G17:H17) -> 1000
A19: Итого на работу: | G19: =SUMPRODUCT(C5:C19,E5:E19) -> 8617
A20: Итого на материал: | H20: =ROUNDDOWN(SUMPRODUCT(C3:C19,F3:F19),0) -> 1000

Sheet Этап
A1: Перед началом выполнения макроса
A3: Приемка работ №2
A5: Наименование работ | B5: Кол-во: | C5: Ед. изм. | D5: Цена за ед.работы | E5: ВСЕГО
A6: Демонтаж пола | B6: 13 | C6: кв.м. | D6: 150 | E6: =B6*D6 -> 1950
A7: Демонтаж стен | B7: 16 | C7: кв.м. | D7: 45 | E7: =B7*D7 -> 720
A8: Демонтаж потолка | B8: 29 | C8: кв.м. | D8: 39 | E8: =B8*D8 -> 1131
A9: Итого: | E9: =SUM(E6:E8) -> 3801
A11: Все работы выполнены в срок.
A17: После выполнения макроса
A19: Приемка работ №1
A21: Наименование работ | B21: Кол-во: | C21: Ед. изм. | D21: Цена за ед.работы | E21: ВСЕГО
A22: Снятие краски и шпатлевки с потолка | B22: 45 | C22: кв.м. | D22: 100 | E22: =B22*D22 -> 4500
A23: Снятие краски и шпатлевки со стен | B23: 4 | C23: кв.м. | D23: 39 | E23: =B23*D23 -> 156
A24: Снятие пола | B24: 4 | C24: кв.м. | D24: 40 | E24: =B24*D24 -> 160
A25: Итого: | E25: =SUMPRODUCT(B21:B25,D21:D25) -> 4816
A27: Все работы выполнены в срок.
